{"text_format":"1","workbook":"xlsx","n_sheets":3,"sheets":["Entrada","Resultado ","suspenso"],"not_rendered":{"charts":0,"images":1,"macros":1,"external_links":1,"defined_names":5,"comments":0,"pivot_tables":0},"unopened":[],"bounds":{"document_bytes":16777216,"sheet_cells":100000,"rows_first":2000,"rows_last":500,"rows_between":2000,"halvings":0,"cell_chars":16384,"cell_head_chars":4096},"cells_cut":0,"cells_raw":0,"read":"whole","date_system":"1900"}

{"sheet":"Entrada","index":0,"n_rows":32,"n_cols":13,"rows_kept":32,"cut":false,"hidden":false,"merged":[[1,0,1,5],[4,0,4,5],[9,8,9,12],[9,3,9,7],[7,0,7,5],[6,0,6,5],[5,0,5,5]]}
["Objetivo"]
["Esta ferramenta foi criada para mapear as partes interessadas em cada uma das cinco diferentes áreas de trabalho do 7-1-7: coordenação; coleta e análise de dados; melhoria do desempenho; planejamento e financiamento; e comunicação e defesa"]
[]
["Preencha a tabela abaixo seguindo as seguintes etapas"]
["1. Relacione os nomes de cada parte interessada do 7-1-7 na coluna B"]
["2. Relacione o interesse atual de cada parte interessada em apoiar o uso do 7-1-7 na coluna C (alto ou baixo)"]
["3. Relacione a relevância de cada parte interessada para cada uma das cinco áreas de trabalho do 7-1-7 nas Colunas D-H: coleta e análise de dados; melhoria do desempenho; planejamento e financiamento; e comunicação e defesa. Observação: relevância pode significar funções/responsabilidades pré-existentes, experiência e conhecimento na área e/ou autoridade de tomada de decisão na área de trabalho.  "]
["4. Após inserir todos os dados, clique no botão “Refresh Outputs” (Atualizar resultados) à direita para preencher as tabelas na guia Output (Resultados) desta planilha. As macros devem estar ativadas para esse arquivo do Excel para que essa etapa funcione."]
[]
[null,null,null,"Relevância para as áreas de trabalho do 7-1-7",null,null,null,null,"STAKEHOLDER CATEGORY"]
["#","Parte Interessada","Interesse no 7-1-7","Coordenação","Coleta e análise de dados","Melhoria de desempenho","Planejamento e financiamento","Comunicação e defesa","Coordination2","Data Collection3","Performance Improvement4","National Planning5","Communication and Advocacy6"]
["Exemplo","Nome da parte interessada","Baixo","Alto","Baixo","Alto","Baixo","Alto",{"$f":"IF(AND(D12=\"High\",$C12=\"High\"),\"Driver: manage closely\",IF(AND(D12=\"Low\",$C12=\"High\"),\"Supporter: keep motivated and informed\",IF(AND(D12=\"High\",$C12=\"Low\"),\"Potential blocker: understand resistance/keep satisfied\",IF(AND(D12=\"Low\",$C12=\"Low\"),\"Bystander: monitor and keep informed\",\"\"))))","v":""},{"$f":"IF(AND(E12=\"High\",$C12=\"High\"),\"Driver: manage closely\",IF(AND(E12=\"Low\",$C12=\"High\"),\"Supporter: keep motivated and informed\",IF(AND(E12=\"High\",$C12=\"Low\"),\"Potential blocker: understand resistance/keep satisfied\",IF(AND(E12=\"Low\",$C12=\"Low\"),\"Bystander: monitor and keep informed\",\"\"))))","v":""},{"$f":"IF(AND(F12=\"High\",$C12=\"High\"),\"Driver: manage closely\",IF(AND(F12=\"Low\",$C12=\"High\"),\"Supporter: keep motivated and informed\",IF(AND(F12=\"High\",$C12=\"Low\"),\"Potential blocker: understand resistance/keep satisfied\",IF(AND(F12=\"Low\",$C12=\"Low\"),\"Bystander: monitor and keep informed\",\"\"))))","v":""},{"$f":"IF(AND(G12=\"High\",$C12=\"High\"),\"Driver: manage closely\",IF(AND(G12=\"Low\",$C12=\"High\"),\"Supporter: keep motivated and informed\",IF(AND(G12=\"High\",$C12=\"Low\"),\"Potential blocker: understand resistance/keep satisfied\",IF(AND(G12=\"Low\",$C12=\"Low\"),\"Bystander: monitor and keep informed\",\"\"))))","v":""},{"$f":"IF(AND(H12=\"High\",$C12=\"High\"),\"Driver: manage closely\",IF(AND(H12=\"Low\",$C12=\"High\"),\"Supporter: keep motivated and informed\",IF(AND(H12=\"High\",$C12=\"Low\"),\"Potential blocker: understand resistance/keep satisfied\",IF(AND(H12=\"Low\",$C12=\"Low\"),\"Bystander: monitor and keep informed\",\"\"))))","v":""}]
[1,"Parte interessada 1",null,null,null,null,null,null,"","","","",""]
[2,"Parte interessada 2",null,null,null,null,null,null,"","","","",""]
[3,"Parte interessada 3",null,null,null,null,null,null,"","","","",""]
[4,"Parte interessada 4",null,null,null,null,null,null,"","","","",""]
[5,"Parte interessada 5",null,null,null,null,null,null,"","","","",""]
[6,"Parte interessada 6",null,null,null,null,null,null,"","","","",""]
[7,"Parte interessada 7",null,null,null,null,null,null,"","","","",""]
[8,"Parte interessada 8",null,null,null,null,null,null,"","","","",""]
[9,"Parte interessada 9",null,null,null,null,null,null,"","","","",""]
[10,"Parte interessada 10",null,null,null,null,null,null,"","","","",""]
[11,"Parte interessada 11",null,null,null,null,null,null,{"$f":"IF(AND(D23=\"High\",$C23=\"High\"),\"Driver\",IF(AND(D23=\"Low\",$C23=\"High\"),\"Supporter\",IF(AND(D23=\"High\",$C23=\"Low\"),\"Potential blocker\",IF(AND(D23=\"Low\",$C23=\"Low\"),\"Bystander\",\"\"))))","v":""},{"$f":"IF(AND(E23=\"High\",$C23=\"High\"),\"Driver\",IF(AND(E23=\"Low\",$C23=\"High\"),\"Supporter\",IF(AND(E23=\"High\",$C23=\"Low\"),\"Potential blocker\",IF(AND(E23=\"Low\",$C23=\"Low\"),\"Bystander\",\"\"))))","v":""},{"$f":"IF(AND(F23=\"High\",$C23=\"High\"),\"Driver\",IF(AND(F23=\"Low\",$C23=\"High\"),\"Supporter\",IF(AND(F23=\"High\",$C23=\"Low\"),\"Potential blocker\",IF(AND(F23=\"Low\",$C23=\"Low\"),\"Bystander\",\"\"))))","v":""},{"$f":"IF(AND(G23=\"High\",$C23=\"High\"),\"Driver\",IF(AND(G23=\"Low\",$C23=\"High\"),\"Supporter\",IF(AND(G23=\"High\",$C23=\"Low\"),\"Potential blocker\",IF(AND(G23=\"Low\",$C23=\"Low\"),\"Bystander\",\"\"))))","v":""},{"$f":"IF(AND(H23=\"High\",$C23=\"High\"),\"Driver\",IF(AND(H23=\"Low\",$C23=\"High\"),\"Supporter\",IF(AND(H23=\"High\",$C23=\"Low\"),\"Potential blocker\",IF(AND(H23=\"Low\",$C23=\"Low\"),\"Bystander\",\"\"))))","v":""}]
[12,"Parte interessada 12",null,null,null,null,null,null,"","","","",""]
[13,"Parte interessada 13",null,null,null,null,null,null,"","","","",""]
[14,"Parte interessada 14",null,null,null,null,null,null,"","","","",""]
[15,"Parte interessada 15",null,null,null,null,null,null,"","","","",""]
[16,"Parte interessada 16",null,null,null,null,null,null,"","","","",""]
[17,"Parte interessada 17",null,null,null,null,null,null,"","","","",""]
[18,"Parte interessada 18",null,null,null,null,null,null,"","","","",""]
[19,"Parte interessada 19",null,null,null,null,null,null,"","","","",""]
[20,"Parte interessada 20",null,null,null,null,null,null,"","","","",""]

{"sheet":"Resultado ","index":1,"n_rows":7,"n_cols":23,"rows_kept":7,"cut":false,"hidden":false,"merged":[[4,0,4,1],[4,3,4,4],[4,6,4,7],[4,9,4,10],[4,12,4,13]]}
["O resultado abaixo mostra as partes interessadas relevantes para cada uma das cinco principais áreas de trabalho do 7-1-7 (consulte a guia “Input” para mais detalhes)"]
["Se o interesse no 7-1-7 for alto: considere a parte interessada como colaboradora e defensora que deve ser envolvida em momentos importantes. "]
["Se o interesse no 7-1-7 for baixo: tente entender por que o interesse é baixo e priorize o engajamento e a cooperação. ",null,null,null,null,null,null,null,null,null,null,null,null,null,null,null,null,null,null,null,null,null,"Ou nem precisamos falar sobre pessoas com baixo interesse como bloqueadores, elas podem simplesmente não estar interessadas?"]
[]
["Partes interessadas com alta relevância para Coordenação",null,null,"Partes interessadas com alta relevância para Coleta e Análise de Dados",null,null,"Partes interessadas com alta relevância para Melhoria do Desempenho",null,null,"Partes interessadas com alta relevância para Planejamento e o Financiamento",null,null,"Partes interessadas com alta relevância para Comunicação e Defesa"]
[]
["Parte Interessada","Interesse no 7-1-7",null,"Parte Interessada","Interesse no 7-1-7",null,"Parte Interessada","Interesse no 7-1-7",null,"Parte Interessada","Interesse no 7-1-7",null,"Parte Interessada","Interesse no 7-1-7"]

{"sheet":"suspenso","index":2,"n_rows":2,"n_cols":1,"rows_kept":2,"cut":false,"hidden":true,"merged":[]}
["Alto"]
["Baixo"]